[Event "*** Monthly 3|2 Blitz Masters"]
[Site "Chess.com"]
[Date "2014.11.25"]
[Round "6"]
[White "Argente"]
[Black "stepanosinovsky"]
[Result "1-0"]
[WhiteElo "2167"]
[BlackElo "2258"]
[TimeControl "180+2"]
[EndTime "12:12:52 PST"]
[Termination "Argente won on time"]

1. d4 {[%clk 0:03:00]} 1... Nf6 {[%clk 0:02:58.3]} 2. Bg5 {[%clk 0:03:01.6]}
2... c5 {[%clk 0:02:58.5]} 3. Bxf6 {[%clk 0:03:01.5]} 3... gxf6 {[%clk 0:02:59]}
4. d5 {[%clk 0:03:02.3]} 4... Qb6 {[%clk 0:03:00.6]} 5. Qc1 {[%clk 0:03:02.9]}
5... f5 {[%clk 0:03:01.5]} 6. e3 {[%clk 0:03:01.2]} 6... Bg7 {[%clk 0:03:02.4]}
7. c3 {[%clk 0:03:00.1]} 7... e6 {[%clk 0:03:03.4]} 8. Bc4 {[%clk 0:02:55.3]}
8... Qa5 {[%clk 0:03:04]} 9. a4 {[%clk 0:02:50.8]} 9... a6 {[%clk 0:03:04.9]}
10. Nd2 {[%clk 0:02:47.3]} 10... b5 {[%clk 0:02:27.9]} 11. axb5 {[%clk 0:02:43]}
11... Qb6 {[%clk 0:02:29.4]} 12. Ne2 {[%clk 0:02:36]} 12... Bb7 {[%clk
0:02:29.9]} 13. bxa6 {[%clk 0:02:36]} 13... Nxa6 {[%clk 0:02:30.8]} 14. Nf4
{[%clk 0:02:33.8]} 14... Nc7 {[%clk 0:02:31.3]} 15. Rxa8+ {[%clk 0:02:20]} 15...
Bxa8 {[%clk 0:02:33.2]} 16. O-O {[%clk 0:02:16.2]} 16... exd5 {[%clk 0:02:19]}
17. Bd3 {[%clk 0:02:14.5]} 17... Be5 {[%clk 0:01:20.8]} 18. Nf3 {[%clk
0:02:02.2]} 18... Bxf4 {[%clk 0:01:15.9]} 19. exf4 {[%clk 0:02:03]} 19... Rg8
{[%clk 0:00:53]} 20. Re1+ {[%clk 0:01:58.9]} 20... Kd8 {[%clk 0:00:53]} 21. Bxf5
{[%clk 0:01:36.2]} 21... Qf6 {[%clk 0:00:39.3]} 22. Bh3 {[%clk 0:01:32.1]} 22...
d4 {[%clk 0:00:38.4]} 23. Ne5 {[%clk 0:01:23.6]} 23... Nd5 {[%clk 0:00:31.5]}
24. Qa1 {[%clk 0:01:17.3]} 24... Kc7 {[%clk 0:00:12.2]} 25. Qa7+ {[%clk
0:01:03.5]} 25... Bb7 {[%clk 0:00:11.9]} 26. Qxc5+ {[%clk 0:00:54.5]} 26... Kd8
{[%clk 0:00:13]} 27. Qa5+ {[%clk 0:00:45.8]} 27... Qb6 {[%clk 0:00:10.5]} 28.
Qxb6+ {[%clk 0:00:42.5]} 28... Nxb6 {[%clk 0:00:12.4]} 29. Nxf7+ {[%clk
0:00:34.8]} 29... Kc7 {[%clk 0:00:13]} 30. g3 {[%clk 0:00:21.7]} 30... d3 {[%clk
0:00:11.8]} 31. Rd1 {[%clk 0:00:21.6]} 31... Ba6 {[%clk 0:00:09.7]} 32. Bf1
{[%clk 0:00:21.4]} 32... Nd5 {[%clk 0:00:09.3]} 33. Bxd3 {[%clk 0:00:16.1]}
33... Bxd3 {[%clk 0:00:10]} 34. Rxd3 {[%clk 0:00:17.3]} 34... Nxf4 {[%clk
0:00:11.9]} 35. Rd2 {[%clk 0:00:19]} 35... Ne6 {[%clk 0:00:10.5]} 36. Ne5 {[%clk
0:00:19]} 36... d6 {[%clk 0:00:09.8]} 37. Nc4 {[%clk 0:00:19.9]} 37... Rd8
{[%clk 0:00:10.2]} 38. Kg2 {[%clk 0:00:20.9]} 38... d5 {[%clk 0:00:11.2]} 39.
Ne3 {[%clk 0:00:21.1]} 39... Kc6 {[%clk 0:00:12.1]} 40. h4 {[%clk 0:00:20.7]}
40... Nc5 {[%clk 0:00:12.7]} 41. Nf5 {[%clk 0:00:18.6]} 41... Ne4 {[%clk
0:00:12.7]} 42. Rd4 {[%clk 0:00:15.1]} 42... Rd7 {[%clk 0:00:10.6]} 43. Ne3
{[%clk 0:00:14.7]} 43... Nc5 {[%clk 0:00:09.8]} 44. c4 {[%clk 0:00:12.4]} 44...
Nb3 {[%clk 0:00:03.9]} 45. Rxd5 {[%clk 0:00:12.5]} 45... Rf7 {[%clk 0:00:05.6]}
46. Rg5 {[%clk 0:00:11]} 46... Nd2 {[%clk 0:00:04.1]} 47. Rf5 {[%clk 0:00:11.7]}
47... Rb7 {[%clk 0:00:04.5]} 48. g4 {[%clk 0:00:10.1]} 48... Rxb2 {[%clk
0:00:05]} 49. Kh3 {[%clk 0:00:08.9]} 49... Ne4 {[%clk 0:00:05.9]} 50. Nd1 {[%clk
0:00:07]} 50... Rd2 {[%clk 0:00:06.3]} 51. Rf4 {[%clk 0:00:07.8]} 51... Re2
{[%clk 0:00:03.3]} 52. Kg2 {[%clk 0:00:06.7]} 52... Nd2 {[%clk 0:00:02]} 53. Rd4
{[%clk 0:00:06.9]} 1-0

[Event "*** Monthly 3|2 Blitz Masters"]
[Site "Chess.com"]
[Date "2014.11.25"]
[Round "6"]
[White "DanielRensch"]
[Black "pedromartinez91"]
[Result "1-0"]
[WhiteElo "2363"]
[BlackElo "2070"]
[TimeControl "180+2"]
[EndTime "12:13:20 PST"]
[Termination "DanielRensch won by resignation"]

1. e4 {[%clk 0:03:00]} 1... c5 {[%clk 0:02:58.6]} 2. Nf3 {[%clk 0:03:00.6]} 2...
d6 {[%clk 0:02:59.7]} 3. d4 {[%clk 0:03:02]} 3... cxd4 {[%clk 0:03:00.8]} 4.
Nxd4 {[%clk 0:03:03.9]} 4... Nf6 {[%clk 0:03:02.3]} 5. Nc3 {[%clk 0:03:05.4]}
5... a6 {[%clk 0:03:03.3]} 6. Be3 {[%clk 0:03:06.1]} 6... e5 {[%clk 0:03:03.1]}
7. Nb3 {[%clk 0:03:06.8]} 7... Be6 {[%clk 0:03:04]} 8. h3 {[%clk 0:03:07.2]}
8... Be7 {[%clk 0:03:03.1]} 9. g4 {[%clk 0:03:07.4]} 9... h6 {[%clk 0:03:03.2]}
10. Qf3 {[%clk 0:03:07.7]} 10... Nbd7 {[%clk 0:03:03.3]} 11. O-O-O {[%clk
0:03:04.3]} 11... b5 {[%clk 0:03:02.7]} 12. Nd5 {[%clk 0:03:05.3]} 12... Bxd5
{[%clk 0:03:02.7]} 13. exd5 {[%clk 0:03:07.2]} 13... Rc8 {[%clk 0:03:01.2]} 14.
Kb1 {[%clk 0:03:07.4]} 14... Qc7 {[%clk 0:03:02]} 15. Bd3 {[%clk 0:03:06.8]}
15... Qb7 {[%clk 0:02:41.6]} 16. Na5 {[%clk 0:03:04.4]} 16... Qxd5 {[%clk
0:02:37.3]} 17. Qxd5 {[%clk 0:02:55.8]} 17... Nxd5 {[%clk 0:02:37.9]} 18. Bf5
{[%clk 0:02:52]} 18... N5f6 {[%clk 0:02:34.1]} 19. Nb7 {[%clk 0:02:46.1]} 19...
d5 {[%clk 0:02:31.4]} 20. g5 {[%clk 0:02:46.9]} 20... hxg5 {[%clk 0:02:30.2]}
21. Bxg5 {[%clk 0:02:48.8]} 21... Rc7 {[%clk 0:02:27]} 22. Na5 {[%clk
0:02:28.2]} 22... d4 {[%clk 0:02:25.4]} 23. f4 {[%clk 0:02:28]} 23... g6 {[%clk
0:02:01]} 24. fxe5 {[%clk 0:02:22.7]} 24... Nxe5 {[%clk 0:01:53]} 25. Rhe1
{[%clk 0:02:21.8]} 25... Rh5 {[%clk 0:01:39.2]} 26. Bf4 {[%clk 0:02:01.8]} 26...
Rxf5 {[%clk 0:01:34.8]} 27. Bxe5 {[%clk 0:02:02.4]} 27... Rxe5 {[%clk 0:01:11]}
28. Rxe5 {[%clk 0:02:02.3]} 28... Kf8 {[%clk 0:01:12.5]} 29. Rxd4 {[%clk
0:01:45.6]} 29... Nh5 {[%clk 0:01:12.8]} 30. Red5 {[%clk 0:01:28.4]} 30... Bf6
{[%clk 0:01:13]} 31. Rd7 {[%clk 0:01:27.2]} 31... Rc8 {[%clk 0:01:10.8]} 32.
R4d6 {[%clk 0:01:23.9]} 32... Re8 {[%clk 0:00:53.3]} 33. a3 {[%clk 0:01:23.8]}
33... Re1+ {[%clk 0:00:54]} 34. Ka2 {[%clk 0:01:24.6]} 34... Re2 {[%clk
0:00:55.2]} 35. Kb3 {[%clk 0:01:16.2]} 35... Re3+ {[%clk 0:00:55.4]} 36. c3
{[%clk 0:01:17.3]} 36... Rxh3 {[%clk 0:00:53]} 37. Rxa6 {[%clk 0:01:18.2]} 37...
g5 {[%clk 0:00:54]} 38. Ra8+ {[%clk 0:01:17.4]} 38... Kg7 {[%clk 0:00:54.2]} 39.
Raa7 {[%clk 0:01:19.3]} 39... g4 {[%clk 0:00:55.2]} 40. Rxf7+ {[%clk 0:01:17.6]}
40... Kg6 {[%clk 0:00:56.5]} 41. Rfd7 {[%clk 0:00:20]} 41... g3 {[%clk
0:00:56.1]} 42. Rd1 {[%clk 0:00:15.4]} 42... g2 {[%clk 0:00:57.2]} 43. Rg1
{[%clk 0:00:15.9]} 43... Nf4 {[%clk 0:00:58.8]} 44. Rb7 {[%clk 0:00:14.1]} 44...
Rh5 {[%clk 0:00:56.1]} 45. Nc6 {[%clk 0:00:11.1]} 45... Rh1 {[%clk 0:00:52.1]}
46. Rxg2+ {[%clk 0:00:11.7]} 46... Nxg2 {[%clk 0:00:53.3]} 47. Rxb5 {[%clk
0:00:13.3]} 47... Nf4 {[%clk 0:00:51.3]} 48. a4 {[%clk 0:00:14]} 48... Rh2
{[%clk 0:00:51.9]} 49. a5 {[%clk 0:00:13.1]} 49... Nd3 {[%clk 0:00:52.9]} 50.
Ka3 {[%clk 0:00:10.6]} 50... Bg5 {[%clk 0:00:46.1]} 51. a6 {[%clk 0:00:08.6]}
51... Rh1 {[%clk 0:00:41.9]} 52. a7 {[%clk 0:00:09.5]} 52... Be3 {[%clk
0:00:35.5]} 53. Rd5 {[%clk 0:00:06.9]} 53... Ra1+ {[%clk 0:00:33.2]} 54. Kb3
{[%clk 0:00:07.6]} 54... Nc1+ {[%clk 0:00:34.3]} 55. Kc2 {[%clk 0:00:08.6]}
55... Ne2 {[%clk 0:00:30.4]} 56. Re5 {[%clk 0:00:08.4]} 56... Bxa7 {[%clk
0:00:26.4]} 57. Rxe2 {[%clk 0:00:08.8]} 57... Bc5 {[%clk 0:00:27]} 58. b4 {[%clk
0:00:09.6]} 58... Bf8 {[%clk 0:00:26.2]} 59. Kb3 {[%clk 0:00:10.8]} 59... Bg7
{[%clk 0:00:27.1]} 60. Kc4 {[%clk 0:00:11.4]} 60... Rc1 {[%clk 0:00:27.5]} 61.
Nd4 {[%clk 0:00:12.3]} 61... Bf8 {[%clk 0:00:27.1]} 62. b5 {[%clk 0:00:13.3]}
62... Rb1 {[%clk 0:00:28.3]} 63. Re6+ {[%clk 0:00:14.2]} 63... Kf7 {[%clk
0:00:28.3]} 64. Rc6 {[%clk 0:00:14.7]} 64... Ke7 {[%clk 0:00:28.4]} 65. b6
{[%clk 0:00:15.7]} 65... Kd7 {[%clk 0:00:29.6]} 66. Rc7+ {[%clk 0:00:16.9]}
66... Kd8 {[%clk 0:00:30.9]} 67. Rf7 {[%clk 0:00:17.7]} 67... Bd6 {[%clk
0:00:31.4]} 68. b7 {[%clk 0:00:18.1]} 68... Ke8 {[%clk 0:00:30]} 69. Rh7 {[%clk
0:00:18.4]} 69... Be7 {[%clk 0:00:31.3]} 70. Rh8+ {[%clk 0:00:16.3]} 70... Bf8
{[%clk 0:00:31.4]} 71. Rxf8+ {[%clk 0:00:14.8]} 71... Kxf8 {[%clk 0:00:31.9]}
72. Nb5 {[%clk 0:00:16]} 1-0

[Event "*** Monthly 3|2 Blitz Masters"]
[Site "Chess.com"]
[Date "2014.11.25"]
[Round "7"]
[White "vovkcoach"]
[Black "redchessman"]
[Result "1-0"]
[WhiteElo "2470"]
[BlackElo "2261"]
[TimeControl "180+2"]
[EndTime "12:22:48 PST"]
[Termination "vovkcoach won by resignation"]

1. g3 {[%clk 0:03:00]} 1... d5 {[%clk 0:02:58.6]} 2. Bg2 {[%clk 0:03:01.9]} 2...
g6 {[%clk 0:02:55.5]} 3. Nf3 {[%clk 0:03:02.3]} 3... Bg7 {[%clk 0:02:56.6]} 4.
O-O {[%clk 0:03:04.2]} 4... c6 {[%clk 0:02:55.9]} 5. d3 {[%clk 0:03:01]} 5... e5
{[%clk 0:02:54.8]} 6. e4 {[%clk 0:02:59.5]} 6... dxe4 {[%clk 0:02:53.5]} 7. dxe4
{[%clk 0:03:00]} 7... Qxd1 {[%clk 0:02:54.2]} 8. Rxd1 {[%clk 0:03:01.8]} 8... f6
{[%clk 0:02:47.7]} 9. a4 {[%clk 0:02:56]} 9... a5 {[%clk 0:02:44.8]} 10. Na3
{[%clk 0:02:55.8]} 10... Be6 {[%clk 0:02:42.1]} 11. Bf1 {[%clk 0:02:56.5]} 11...
Ne7 {[%clk 0:02:36.4]} 12. Nc4 {[%clk 0:02:56.4]} 12... O-O {[%clk 0:02:27.4]}
13. Be3 {[%clk 0:02:54]} 13... Na6 {[%clk 0:02:21.7]} 14. Nxa5 {[%clk
0:02:42.2]} 14... Rfb8 {[%clk 0:01:30.8]} 15. Bc4 {[%clk 0:02:35.3]} 15... Kf7
{[%clk 0:01:27.9]} 16. Rd7 {[%clk 0:02:28.8]} 16... Bxc4 {[%clk 0:01:26.4]} 17.
Nxc4 {[%clk 0:02:30.7]} 17... Ke8 {[%clk 0:01:25.9]} 18. Rad1 {[%clk 0:02:29.7]}
18... Rd8 {[%clk 0:01:24.6]} 19. Rxd8+ {[%clk 0:02:24.8]} 19... Rxd8 {[%clk
0:01:24.7]} 20. Nd6+ {[%clk 0:02:25.9]} 20... Kf8 {[%clk 0:01:20.9]} 21. Rd2
{[%clk 0:02:27.2]} 21... Rd7 {[%clk 0:01:05.1]} 22. a5 {[%clk 0:02:27.9]} 22...
Kg8 {[%clk 0:00:53]} 23. c3 {[%clk 0:02:15.2]} 23... Bf8 {[%clk 0:00:52.6]} 24.
b4 {[%clk 0:02:16]} 24... h5 {[%clk 0:00:40.6]} 25. Ne8 {[%clk 0:02:09.3]} 25...
Rxd2 {[%clk 0:00:36.4]} 26. Nxd2 {[%clk 0:02:11.2]} 26... Kf7 {[%clk 0:00:34.5]}
27. Nd6+ {[%clk 0:02:11.5]} 27... Ke6 {[%clk 0:00:33.5]} 28. Nxb7 {[%clk
0:02:13.4]} 28... Nc8 {[%clk 0:00:28.3]} 29. Nb3 {[%clk 0:02:12.3]} 1-0

[Event "*** Monthly 3|2 Blitz Masters"]
[Site "Chess.com"]
[Date "2014.11.25"]
[Round "7"]
[White "GulamaliRises"]
[Black "patzerplay"]
[Result "1-0"]
[WhiteElo "2411"]
[BlackElo "2100"]
[TimeControl "180+2"]
[EndTime "12:23:01 PST"]
[Termination "GulamaliRises won by resignation"]

1. e4 {[%clk 0:02:24.8]} 1... c5 {[%clk 0:02:54.8]} 2. d4 {[%clk 0:02:18.1]}
2... cxd4 {[%clk 0:02:55.5]} 3. c3 {[%clk 0:02:15.2]} 3... dxc3 {[%clk
0:02:57.4]} 4. Nxc3 {[%clk 0:02:16.9]} 4... d6 {[%clk 0:02:59.3]} 5. Nf3 {[%clk
0:02:18.6]} 5... Nc6 {[%clk 0:03:00.3]} 6. Bc4 {[%clk 0:02:20.2]} 6... a6 {[%clk
0:03:02.2]} 7. O-O {[%clk 0:02:20.5]} 7... Nf6 {[%clk 0:03:03.5]} 8. h3 {[%clk
0:02:18.1]} 8... e6 {[%clk 0:02:56.4]} 9. Qe2 {[%clk 0:02:18.2]} 9... Bd7 {[%clk
0:02:49.2]} 10. Rd1 {[%clk 0:02:17.9]} 10... Be7 {[%clk 0:02:47]} 11. Bf4 {[%clk
0:02:18.8]} 11... Qb8 {[%clk 0:02:47.6]} 12. e5 {[%clk 0:02:07.8]} 12... dxe5
{[%clk 0:02:42.2]} 13. Nxe5 {[%clk 0:02:09.7]} 13... Nxe5 {[%clk 0:02:42.2]} 14.
Bxe5 {[%clk 0:02:10]} 14... Qa7 {[%clk 0:02:41.3]} 15. Ne4 {[%clk 0:02:01.5]}
15... Bc6 {[%clk 0:02:40.1]} 16. Nxf6+ {[%clk 0:01:58.8]} 16... gxf6 {[%clk
0:02:40.4]} 17. Bd4 {[%clk 0:01:59]} 17... Qb8 {[%clk 0:02:36.8]} 18. Bxe6
{[%clk 0:01:19.1]} 18... fxe6 {[%clk 0:02:32.2]} 19. Qh5+ {[%clk 0:01:18.6]}
19... Kf8 {[%clk 0:02:30.3]} 20. Be3 {[%clk 0:01:19.8]} 20... Be8 {[%clk
0:02:23.9]} 21. Bh6+ {[%clk 0:01:18.3]} 21... Kg8 {[%clk 0:02:25.1]} 22. Qg4+
{[%clk 0:01:20]} 22... Bg6 {[%clk 0:02:21.2]} 23. Qxe6+ {[%clk 0:01:21.6]} 23...
Bf7 {[%clk 0:02:22.1]} 24. Qg4+ {[%clk 0:01:23.3]} 24... Bg6 {[%clk 0:02:23]}
25. Qe6+ {[%clk 0:01:24.3]} 25... Bf7 {[%clk 0:02:24.3]} 26. Qxe7 {[%clk
0:01:26]} 26... Qe5 {[%clk 0:02:13.6]} 27. Qxb7 {[%clk 0:01:17.1]} 27... Rb8
{[%clk 0:02:10.7]} 28. Qxa6 {[%clk 0:00:51.6]} 28... Be6 {[%clk 0:02:05.9]} 29.
Re1 {[%clk 0:00:46.6]} 29... Bc8 {[%clk 0:02:06.3]} 30. Qc4+ {[%clk 0:00:45.4]}
30... Be6 {[%clk 0:02:07.5]} 31. Qxe6+ {[%clk 0:00:45.8]} 31... Qxe6 {[%clk
0:02:08.4]} 32. Rxe6 {[%clk 0:00:47.7]} 32... Kf7 {[%clk 0:02:10]} 33. Re2
{[%clk 0:00:47.5]} 33... Rhg8 {[%clk 0:02:10.8]} 34. Bf4 {[%clk 0:00:48.6]}
34... Rb4 {[%clk 0:02:11.2]} 35. Bg3 {[%clk 0:00:49.4]} 35... Rc8 {[%clk
0:02:09.3]} 36. a4 {[%clk 0:00:50.5]} 36... Ra8 {[%clk 0:02:08.9]} 37. a5 {[%clk
0:00:51.6]} 37... Rb5 {[%clk 0:02:09.6]} 38. a6 {[%clk 0:00:52.5]} 38... Rb6
{[%clk 0:02:10.6]} 39. a7 {[%clk 0:00:53.3]} 1-0

[Event "*** Monthly 3|2 Blitz Masters"]
[Site "Chess.com"]
[Date "2014.11.25"]
[Round "7"]
[White "pKiLz5Rn9b"]
[Black "MattyDPerrine"]
[Result "0-1"]
[WhiteElo "2144"]
[BlackElo "2041"]
[TimeControl "180+2"]
[EndTime "12:23:22 PST"]
[Termination "MattyDPerrine won by checkmate"]

1. f4 {[%clk 0:03:00]} 1... c5 {[%clk 0:02:55.9]} 2. Nf3 {[%clk 0:03:01.3]} 2...
b6 {[%clk 0:02:54.4]} 3. e4 {[%clk 0:03:02.6]} 3... Bb7 {[%clk 0:02:55.7]} 4.
Nc3 {[%clk 0:03:03.9]} 4... e6 {[%clk 0:02:56.2]} 5. d4 {[%clk 0:03:03.2]} 5...
cxd4 {[%clk 0:02:58.1]} 6. Nxd4 {[%clk 0:03:04.3]} 6... d6 {[%clk 0:02:58.2]} 7.
Be3 {[%clk 0:03:05.4]} 7... a6 {[%clk 0:02:57.6]} 8. Qf3 {[%clk 0:03:06.5]} 8...
Qc7 {[%clk 0:02:58.2]} 9. Bd3 {[%clk 0:03:07.5]} 9... Nf6 {[%clk 0:02:59.3]} 10.
O-O-O {[%clk 0:03:08.6]} 10... Nbd7 {[%clk 0:03:00.2]} 11. g4 {[%clk 0:03:07.8]}
11... b5 {[%clk 0:02:59.8]} 12. g5 {[%clk 0:03:09.2]} 12... b4 {[%clk
0:03:00.5]} 13. Na4 {[%clk 0:03:07.3]} 13... Ng8 {[%clk 0:02:58.5]} 14. Nb3
{[%clk 0:02:56.8]} 14... Ne7 {[%clk 0:02:44.1]} 15. h4 {[%clk 0:02:53.4]} 15...
d5 {[%clk 0:02:35]} 16. exd5 {[%clk 0:02:49.8]} 16... Nxd5 {[%clk 0:02:28]} 17.
Be4 {[%clk 0:02:48.2]} 17... f5 {[%clk 0:02:29.3]} 18. Bxd5 {[%clk 0:02:46.9]}
18... Bxd5 {[%clk 0:02:30.3]} 19. Rxd5 {[%clk 0:02:47.6]} 19... exd5 {[%clk
0:02:32.2]} 20. Qxd5 {[%clk 0:02:48]} 20... O-O-O {[%clk 0:02:33.7]} 21. Qxf5
{[%clk 0:02:48.6]} 21... Bd6 {[%clk 0:02:31.9]} 22. Bb6 {[%clk 0:02:42.3]} 22...
Qc6 {[%clk 0:02:17.5]} 23. Bxd8 {[%clk 0:02:37.8]} 23... Qxh1+ {[%clk
0:02:16.9]} 24. Kd2 {[%clk 0:02:35.7]} 24... Kxd8 {[%clk 0:02:09.3]} 25. Nd4
{[%clk 0:02:31.8]} 25... Qxh4 {[%clk 0:01:32.6]} 26. Kd3 {[%clk 0:02:25.2]}
26... Qe1 {[%clk 0:00:10.6]} 27. Ne6+ {[%clk 0:02:15.2]} 27... Ke7 {[%clk
0:00:11]} 28. Nxg7 {[%clk 0:02:16.4]} 28... Rf8 {[%clk 0:00:10]} 29. Qxh7 {[%clk
0:02:14.3]} 29... Qf1+ {[%clk 0:00:10]} 30. Kd4 {[%clk 0:02:04.8]} 30... Rxf4+
{[%clk 0:00:09.4]} 31. Kd5 {[%clk 0:02:06.1]} 31... Qc4# {[%clk 0:00:10]} 0-1

[Event "*** Monthly 3|2 Blitz Masters"]
[Site "Chess.com"]
[Date "2014.11.25"]
[Round "7"]
[White "Yaacovn"]
[Black "GeorgMeier"]
[Result "0-1"]
[WhiteElo "2602"]
[BlackElo "2624"]
[TimeControl "180+2"]
[EndTime "12:25:45 PST"]
[Termination "GeorgMeier won on time"]

1. d4 {[%clk 0:03:00]} 1... e6 {[%clk 0:02:59.2]} 2. Nf3 {[%clk 0:02:58.1]} 2...
Nf6 {[%clk 0:03:00.6]} 3. c4 {[%clk 0:02:55.7]} 3... d5 {[%clk 0:02:59.8]} 4.
Nc3 {[%clk 0:02:55.8]} 4... dxc4 {[%clk 0:03:00.6]} 5. e3 {[%clk 0:02:48.8]}
5... a6 {[%clk 0:03:00.8]} 6. a4 {[%clk 0:02:46.8]} 6... c5 {[%clk 0:03:01.7]}
7. Bxc4 {[%clk 0:02:47.4]} 7... Nc6 {[%clk 0:03:02.4]} 8. O-O {[%clk 0:02:47.6]}
8... Be7 {[%clk 0:03:03]} 9. dxc5 {[%clk 0:02:41.2]} 9... Bxc5 {[%clk
0:03:00.5]} 10. Qxd8+ {[%clk 0:02:40]} 10... Kxd8 {[%clk 0:03:02.4]} 11. Ng5
{[%clk 0:02:40]} 11... Ke7 {[%clk 0:03:02.5]} 12. Bd2 {[%clk 0:02:33.2]} 12...
Bd7 {[%clk 0:02:46.2]} 13. Rac1 {[%clk 0:02:13.1]} 13... Rac8 {[%clk 0:02:44.3]}
14. Rfd1 {[%clk 0:02:10.7]} 14... Rhd8 {[%clk 0:02:43]} 15. h3 {[%clk 0:02:09]}
15... Be8 {[%clk 0:02:40.7]} 16. Be1 {[%clk 0:02:06.1]} 16... Bb4 {[%clk
0:02:37.9]} 17. Be2 {[%clk 0:01:53.6]} 17... h6 {[%clk 0:02:28.4]} 18. Nge4
{[%clk 0:01:53.8]} 18... Nxe4 {[%clk 0:02:27.3]} 19. Nxe4 {[%clk 0:01:55.7]}
19... Rxd1 {[%clk 0:02:11.7]} 20. Rxd1 {[%clk 0:01:49.2]} 20... Bxe1 {[%clk
0:02:12.6]} 21. Rxe1 {[%clk 0:01:50.3]} 21... Nb4 {[%clk 0:02:14.2]} 22. b3
{[%clk 0:01:49.1]} 22... Rc2 {[%clk 0:02:12]} 23. Bf1 {[%clk 0:01:46]} 23... Bc6
{[%clk 0:02:10]} 24. Ng3 {[%clk 0:01:42]} 24... Bd5 {[%clk 0:02:07.3]} 25. Rb1
{[%clk 0:01:38.2]} 25... Rc3 {[%clk 0:02:05.8]} 26. Bc4 {[%clk 0:01:34.4]} 26...
Bxc4 {[%clk 0:02:04.3]} 27. bxc4 {[%clk 0:01:36.3]} 27... a5 {[%clk 0:02:02.3]}
28. Ne2 {[%clk 0:01:30.4]} 28... Rxc4 {[%clk 0:02:02.8]} 29. Nd4 {[%clk
0:01:32.3]} 29... g6 {[%clk 0:02:02.5]} 30. Nb5 {[%clk 0:01:23]} 30... Nd5
{[%clk 0:01:53.5]} 31. Nd4 {[%clk 0:01:16.5]} 31... Rb4 {[%clk 0:01:52.5]} 32.
Ra1 {[%clk 0:01:05.7]} 32... Kd7 {[%clk 0:01:23]} 33. Nf3 {[%clk 0:01:01.1]}
33... f6 {[%clk 0:01:18.9]} 34. Nd4 {[%clk 0:00:55.6]} 34... Nc3 {[%clk
0:01:14.7]} 35. Kh2 {[%clk 0:00:40.5]} 35... Rxa4 {[%clk 0:01:05.7]} 36. Rc1
{[%clk 0:00:40.2]} 36... Nd5 {[%clk 0:01:04.8]} 37. Nb3 {[%clk 0:00:35.7]} 37...
b6 {[%clk 0:01:02.5]} 38. Nd4 {[%clk 0:00:24]} 38... Ra3 {[%clk 0:00:46.9]} 39.
e4 {[%clk 0:00:15.8]} 39... Nc3 {[%clk 0:00:43.8]} 40. Nc2 {[%clk 0:00:04.9]}
40... Ra2 {[%clk 0:00:41.9]} 41. f3 {[%clk 0:00:04.3]} 41... b5 {[%clk
0:00:40.6]} 42. Ne3 {[%clk 0:00:04.2]} 42... b4 {[%clk 0:00:41.8]} 0-1

[Event "*** Monthly 3|2 Blitz Masters"]
[Site "Chess.com"]
[Date "2014.11.25"]
[Round "7"]
[White "RitvarsReimanis"]
[Black "IMLevAltounian"]
[Result "0-1"]
[WhiteElo "2232"]
[BlackElo "2232"]
[TimeControl "180+2"]
[EndTime "12:26:53 PST"]
[Termination "IMLevAltounian won by checkmate"]

1. d4 {[%clk 0:02:53.3]} 1... e6 {[%clk 0:02:58.5]} 2. c4 {[%clk 0:02:53.3]}
2... Bb4+ {[%clk 0:02:58.9]} 3. Bd2 {[%clk 0:02:54.1]} 3... Bxd2+ {[%clk
0:02:59.7]} 4. Nxd2 {[%clk 0:02:56]} 4... f5 {[%clk 0:03:00.2]} 5. Ngf3 {[%clk
0:02:55.4]} 5... Nf6 {[%clk 0:03:01.3]} 6. e3 {[%clk 0:02:56.6]} 6... b6 {[%clk
0:03:01]} 7. Be2 {[%clk 0:02:55.6]} 7... Bb7 {[%clk 0:03:02.3]} 8. O-O {[%clk
0:02:57.2]} 8... O-O {[%clk 0:03:03.2]} 9. Ne5 {[%clk 0:02:57.1]} 9... d6 {[%clk
0:03:01.4]} 10. Bf3 {[%clk 0:02:58.1]} 10... Qc8 {[%clk 0:03:02.9]} 11. Nd3
{[%clk 0:02:54.9]} 11... Nbd7 {[%clk 0:03:00.9]} 12. Nf4 {[%clk 0:02:54.8]}
12... Re8 {[%clk 0:02:43.8]} 13. d5 {[%clk 0:02:37.8]} 13... e5 {[%clk
0:02:44.5]} 14. Ne6 {[%clk 0:02:36.7]} 14... Nf8 {[%clk 0:02:33.4]} 15. Nxf8
{[%clk 0:02:27]} 15... Rxf8 {[%clk 0:02:35.3]} 16. Be2 {[%clk 0:02:21]} 16... c5
{[%clk 0:02:25.5]} 17. f4 {[%clk 0:02:20.7]} 17... Qe8 {[%clk 0:02:19.9]} 18.
Kh1 {[%clk 0:02:05.8]} 18... Qe7 {[%clk 0:02:17.3]} 19. Rc1 {[%clk 0:01:57.5]}
19... Rae8 {[%clk 0:02:17.4]} 20. Rc3 {[%clk 0:01:58.1]} 20... exf4 {[%clk
0:02:14.8]} 21. Rxf4 {[%clk 0:02:00]} 21... Bc8 {[%clk 0:02:13.4]} 22. h3 {[%clk
0:01:59.1]} 22... Nd7 {[%clk 0:01:59.8]} 23. e4 {[%clk 0:01:42.9]} 23... Ne5
{[%clk 0:01:38.1]} 24. exf5 {[%clk 0:01:40.8]} 24... Qg5 {[%clk 0:01:34]} 25.
Qf1 {[%clk 0:01:29.9]} 25... Rxf5 {[%clk 0:01:33.1]} 26. Rxf5 {[%clk 0:01:27.5]}
26... Bxf5 {[%clk 0:01:35]} 27. Nf3 {[%clk 0:01:11.2]} 27... Nxf3 {[%clk
0:01:31.7]} 28. Bxf3 {[%clk 0:01:10.5]} 28... Qd2 {[%clk 0:01:26]} 29. Rc1
{[%clk 0:00:50.2]} 29... Qxb2 {[%clk 0:01:26.5]} 30. Re1 {[%clk 0:00:51.2]}
30... Re5 {[%clk 0:01:18.7]} 31. Rxe5 {[%clk 0:00:50.1]} 31... Qxe5 {[%clk
0:01:20.3]} 32. Qc1 {[%clk 0:00:47.4]} 32... g6 {[%clk 0:01:14.8]} 33. Qa3
{[%clk 0:00:33.5]} 33... Qe7 {[%clk 0:01:04.6]} 34. Qa4 {[%clk 0:00:26.3]} 34...
Kg7 {[%clk 0:00:55.8]} 35. Qa3 {[%clk 0:00:22.7]} 35... h5 {[%clk 0:00:55.3]}
36. Qc3+ {[%clk 0:00:23]} 36... Qf6 {[%clk 0:00:55.7]} 37. Qa3 {[%clk
0:00:23.7]} 37... Qe7 {[%clk 0:00:52.4]} 38. Qc3+ {[%clk 0:00:24]} 38... Kh7
{[%clk 0:00:52.3]} 39. Qa3 {[%clk 0:00:24.3]} 39... h4 {[%clk 0:00:50.9]} 40.
Qa6 {[%clk 0:00:23.3]} 40... Kh6 {[%clk 0:00:43.9]} 41. Qa3 {[%clk 0:00:22.4]}
41... Qe1+ {[%clk 0:00:43]} 42. Kh2 {[%clk 0:00:23.1]} 42... Qg3+ {[%clk
0:00:44.1]} 43. Kh1 {[%clk 0:00:24.4]} 43... g5 {[%clk 0:00:37.2]} 44. Qxa7
{[%clk 0:00:23.2]} 44... Qe1+ {[%clk 0:00:35.3]} 45. Kh2 {[%clk 0:00:23.6]}
45... Qg3+ {[%clk 0:00:37]} 46. Kh1 {[%clk 0:00:24.6]} 46... Bxh3 {[%clk
0:00:38.7]} 47. Qb8 {[%clk 0:00:19.3]} 47... Qe1+ {[%clk 0:00:38]} 48. Kh2
{[%clk 0:00:19.8]} 48... Qg3+ {[%clk 0:00:39.7]} 49. Kh1 {[%clk 0:00:20.8]}
49... Bf5 {[%clk 0:00:36.5]} 50. Qf8+ {[%clk 0:00:20.8]} 50... Kg6 {[%clk
0:00:37.5]} 51. Qg8+ {[%clk 0:00:21]} 51... Kf6 {[%clk 0:00:38.4]} 52. Qh8+
{[%clk 0:00:22.5]} 52... Kf7 {[%clk 0:00:37.8]} 53. Bh5+ {[%clk 0:00:19.6]}
53... Ke7 {[%clk 0:00:39.3]} 54. Qg7+ {[%clk 0:00:20.3]} 54... Kd8 {[%clk
0:00:40.1]} 55. Qf6+ {[%clk 0:00:20.5]} 55... Kc7 {[%clk 0:00:41.5]} 56. Qf7+
{[%clk 0:00:20]} 56... Bd7 {[%clk 0:00:41.2]} 57. Qe7 {[%clk 0:00:19.9]} 57...
h3 {[%clk 0:00:38.8]} 58. Bf3 {[%clk 0:00:18.4]} 58... g4 {[%clk 0:00:35.4]} 59.
Be4 {[%clk 0:00:17.9]} 59... Qe1+ {[%clk 0:00:33.3]} 60. Kh2 {[%clk 0:00:17.8]}
60... g3# {[%clk 0:00:35]} 0-1